fUSD/lending_fUSD_20241219
["ID","MTS","AMOUNT","RATE_DAILY","PERIOD"]
[346029364,1734637845953,-150.0,0.00024914,2]
[346029365,1734637845965,-150.0,0.00024914,2]
[346029366,1734637845974,-150.0,0.00024916,2]
[346029367,1734637845984,-150.0,0.00024931,2]
[346029368,1734637845993,-150.0,0.00024943,2]
[346029369,1734637846003,-150.0,0.00024944,2]
[346029370,1734637846012,-150.0,0.00024978,2]
[346029371,1734637846022,-500.0,0.00024999,4]
[346029372,1734637846032,-1120.2311025,0.00024999,10]
[346029373,1734637846041,-150.0,0.00024999,2]
[346029374,1734637846051,-500.0,0.00024999,4]
[346029375,1734637846060,-1362.0,0.00025,2]
[346029376,1734637846070,-49413.01303851,0.00025,2]
[346029377,1734637846079,-7650.51,0.00025,7]
[346029394,1734637846232,-12905.0,0.00025,30]
[346029396,1734637846242,-500.0,0.00025,2]
[346029398,1734637846251,-202.5,0.00025,2]
[346029400,1734637846263,-3600.0,0.00025,26]
[346029402,1734637846273,-16142.68895593,0.00025,2]
[346029404,1734637846285,-80098.67405,0.00025,2]
[346029407,1734637846296,-268.01314013,0.00025,2]
[346029409,1734637846307,-58948.14637885,0.00025,2]
[346029411,1734637846319,-4621.18572037,0.00025,2]
[346029413,1734637846330,-1937.477453,0.00025,2]
[346029416,1734637846347,-150.0,0.00024825,2]
[346029418,1734637846356,-323.29612248,0.00025,2]
[346029420,1734637846367,-1100.00001,0.00025,2]
[346029422,1734637846378,-360.56744059,0.00025,2]
[346029426,1734637846402,-150.0,0.00024766,2]
[346029428,1734637846411,-150.0,0.00024949,2]
[346029430,1734637846420,-2174.00482334,0.00025,2]
[346029432,1734637846435,-5400.16176705,0.00025,2]
[346029434,1734637846446,-2186.0,0.00025,2]
[346029442,1734637846518,-430.60249859,0.00025,2]
[346029444,1734637846529,-255020.14654539,0.00025,2]
[346029447,1734637846540,-48500.0,0.00025,2]
[346029449,1734637846551,-555.55000002,0.00025,2]
[346029451,1734637846562,-344.41999957,0.00025,2]
[346029453,1734637846573,-649.84204339,0.00025,2]
[346029455,1734637846585,-676.0,0.00025,2]
[346029459,1734637846608,-150.0,0.00024819,2]
[346029461,1734637846618,-150.0,0.00024882,2]
[346029463,1734637846628,-150.0,0.00024931,2]
[346029465,1734637846638,-4378.48034334,0.00025,2]
[346029467,1734637846649,-2243.0,0.00025,2]
[346029469,1734637846660,-3432.0,0.00025,2]
[346029472,1734637846672,-876.32258986,0.00025,2]
[346029540,1734638742219,-27996.0,0.00020996,2]
[346029541,1734638742240,-551.56,0.00020997,2]
[346029542,1734638742271,-500.0,0.00021164,2]
[346029543,1734638742291,-500.0,0.00021164,2]
[346029544,1734638742309,-418.80109333,0.00022138,2]
[346029545,1734638742329,-150.0,0.00022488,4]
[346029546,1734638742348,-121.56648443,0.00022488,4]
[346029547,1734638792170,171.39,0.00010137,2]
[346029549,1734638816101,-500.0,0.00021164,2]
[346029550,1734638816126,-28.43351557,0.00022488,4]
[346029551,1734638816151,-150.0,0.00022488,4]
[346029552,1734638816176,-150.0,0.00022488,4]
[346029553,1734638816201,-150.0,0.00022488,4]
[346029554,1734638816225,-150.0,0.00022563,4]
[346029555,1734638816250,-200.0,0.00022608,2]
[346029556,1734638816274,-250.0,0.00022627,2]
[346029557,1734638816298,-150.0,0.00022639,4]
[346029558,1734638816325,-901.56,0.00022696,2]
[346029559,1734638816349,-150.0,0.00022699,2]
[346029560,1734638816373,-150.0,0.00022715,4]
[346029561,1734638816395,-961.25875035,0.00022722,2]
[346029563,1734638838302,-300.0,0.00022721,2]
[346029564,1734638838328,-31594.74124965,0.00022722,2]
[346029565,1734638838352,-150.0,0.00022791,4]
[346029566,1734638838375,-150.0,0.000228,4]
[346029567,1734638838397,-234.68612663,0.00022827,2]
[346029568,1734638838419,-150.0,0.00022866,4]
[346029569,1734638838440,-1067.31,0.00022911,2]
[346029570,1734638838462,-1000.0,0.00022927,2]
[346029571,1734638838484,-150.0,0.00022942,4]
[346029572,1734638838505,-23900.0,0.00022943,2]
[346029573,1734638838526,-154.41,0.00022954,2]
[346029574,1734638838547,-153.22,0.0002296,2]
[346029575,1734638838569,-154.18,0.00022963,2]
[346029576,1734638838596,-154.41,0.00022992,2]
[346029577,1734638838617,-300.0,0.00023017,2]
[346029578,1734638838639,-150.0,0.00023018,4]
[346029579,1734638838660,-2000.0,0.00023018,2]
[346029580,1734638838682,-882.78,0.00023024,2]
[346029581,1734638838704,-154.41,0.0002303,2]
[346029582,1734638838725,-250.0,0.00023036,2]
[346029583,1734638838747,-313.67,0.00023038,2]
[346029584,1734638838771,-200.0,0.00023058,2]
[346029585,1734638838799,-6267.05,0.00023061,2]
[346029586,1734638838821,-250.0,0.00023067,2]
[346029587,1734638838847,-154.41,0.00023069,2]
[346029588,1734638838871,-255.29767,0.00023088,7]
[346029589,1734638838893,-150.0,0.00023093,4]
[346029590,1734638838915,-150.0,0.00023112,4]
[346029591,1734638838937,-150.0,0.00023169,4]
[346029592,1734638838959,-150.0,0.00023245,4]
[346029593,1734638838981,-551.56,0.00023261,2]
[346029594,1734638839002,-255.29767,0.00023288,7]
[346029595,1734638839025,-150.0,0.00023321,4]
[346029596,1734638839047,-150.0,0.00023321,4]
[346029597,1734638839067,-2927.75537813,0.00023343,2]
[346029598,1734638839098,-2031.314,0.00023356,3]
[346029599,1734638839121,-178.35,0.00023356,3]
[346029600,1734638839143,-500.0,0.00023356,2]
[346029601,1734638839166,-169.26,0.00023377,2]
[346029602,1734638839188,-150.0,0.00023396,4]
[346029603,1734638839209,-500.0,0.00023415,7]
[346029604,1734638839232,-500.0,0.00023415,7]
[346029605,1734638839253,-500.0,0.00023415,7]
[346029606,1734638839275,-150.0,0.00023425,4]
[346029607,1734638839296,-185.71,0.00023469,2]
[346029608,1734638839318,-150.0,0.00023472,4]
[346029609,1734638839345,-255.29767,0.00023488,7]
[346029610,1734638839624,-182.75779525,0.00023507,2]
[346029611,1734638839647,-150.0,0.00023548,4]
[346029612,1734638839668,-2751.0,0.0002355,2]
[346029613,1734638839698,-1500.0,0.00023608,2]
[346029614,1734638839723,-182.75779525,0.00023616,2]
[346029615,1734638839744,-250.0,0.00023621,2]
[346029616,1734638839770,-150.0,0.00023623,4]
[346029617,1734638839791,-255.29767,0.00023688,7]
[346029618,1734638839814,-500.0,0.00023689,7]
[346029619,1734638839837,-500.0,0.00023689,7]
[346029620,1734638839861,-150.0,0.00023699,4]
[346029621,1734638839882,-164.3,0.00023717,30]
[346029622,1734638839903,-150.0,0.00023737,4]
[346029623,1734638839924,-1000.0,0.00023746,2]
[346029624,1734638839945,-441.44,0.0002375,2]
[346029625,1734638839966,-182.75779525,0.00023753,2]
[346029626,1734638839993,-150.0,0.00023775,4]
[346029627,1734638840017,-150.0,0.00023851,4]
[346029628,1734638840038,-382.1,0.0002386,2]
[346029629,1734638840059,-182.75779525,0.00023863,2]
[346029630,1734638840087,-1700.0,0.000239,8]
[346029631,1734638840108,-150.0,0.00023926,4]
[346029632,1734638840132,-500.0,0.00023962,7]
[346029633,1734638840154,-920.28,0.00023962,7]
[346029634,1734638840175,-182.75779525,0.00023973,2]
[346029635,1734638840196,-10000.0,0.00024,2]
[346029636,1734638840218,-3500.0,0.00024,8]
[346029637,1734638840239,-150.0,0.00024002,4]
[346029638,1734638840260,-150.0,0.00024049,4]
[346029639,1734638840280,-1169.08,0.00024055,2]
[346029640,1734638840301,-436.69,0.00024055,2]
[346029641,1734638840321,-436.69,0.00024055,2]
[346029642,1734638840346,-436.69,0.00024055,2]
[346029643,1734638840367,-150.0,0.00024078,4]
[346029644,1734638840389,-182.75779525,0.00024082,2]
[346029645,1734638840409,-255.29767,0.00024088,7]
[346029646,1734638840430,-463.19,0.000241,2]
[346029647,1734638840450,-9547.10940622,0.000241,2]
[346029648,1734638853141,-6561.87865566,0.000241,2]
[346029692,1734639031692,-500.0,0.00021164,2]
[346029693,1734639031703,-300.0,0.00022499,2]
[346029694,1734639031712,-4010.8848,0.000225,2]
[346029695,1734639031723,-750.37477044,0.000225,2]
[346029696,1734639031735,-1703.61103245,0.000225,2]
[346029697,1734639031746,-1096.10478348,0.000225,2]
[346029698,1734639031757,-5770.41239856,0.000225,2]
[346029699,1734639031769,-4442.056675,0.000225,2]
[346029700,1734639031781,-3332.6871248,0.000225,2]
[346029701,1734639031792,-6744.1113342,0.000225,2]
[346029702,1734639031804,-1208.90679394,0.000225,2]
[346029703,1734639031815,-1156.68280329,0.000225,2]
[346029704,1734639031826,-380.0,0.000225,2]
[346029705,1734639031840,-7482.00265472,0.000225,2]
[346029706,1734639031849,-300.0,0.00023356,2]
[346029707,1734639031858,-493.77,0.00023429,2]
[346029708,1734639031872,-250.0,0.00023441,2]
[346029709,1734639031881,-250.0,0.00023442,2]
[346029710,1734639031891,-2196.15579,0.00024,2]
[346029711,1734639031900,-5300.0,0.000241,8]
[346029712,1734639031911,-416.88,0.000241,2]
[346029713,1734639031920,-436.69,0.000241,2]
[346029714,1734639032133,-436.69,0.000241,2]
[346029715,1734639032143,-436.69,0.000241,2]
[346029716,1734639032152,-436.69,0.000241,2]
[346029717,1734639032162,-154.18,0.00024111,2]
[346029718,1734639032171,-150.0,0.00024153,4]
[346029719,1734639032180,-150.0,0.00024153,4]
[346029720,1734639032189,-182.75779525,0.00024192,2]
[346029721,1734639032198,-1953.08,0.00024192,2]
[346029722,1734639032206,-364.93,0.00024192,2]
[346029723,1734639032215,-436.03,0.00024192,2]
[346029724,1734639032225,-150.0,0.00024192,2]
[346029725,1734639032234,-436.03,0.00024192,2]
[346029726,1734639032244,-364.93,0.00024192,2]
[346029727,1734639032253,-436.03,0.00024192,2]
[346029728,1734639032262,-150.0,0.00024192,2]
[346029729,1734639032272,-364.93,0.00024192,2]
[346029730,1734639032281,-361.59,0.00024192,2]
[346029731,1734639032290,-150.0,0.00024192,2]
[346029732,1734639032299,-150.0,0.00024192,2]
[346029733,1734639032308,-150.0,0.00024192,2]
[346029734,1734639032318,-150.0,0.00024192,2]
[346029735,1734639032327,-150.0,0.00024192,2]
[346029736,1734639032339,-150.0,0.00024192,2]
[346029737,1734639032348,-1172.17,0.00024192,2]
[346029738,1734639032357,-364.93,0.00024192,2]
[346029739,1734639032366,-150.0,0.00024192,2]
[346029740,1734639032375,-364.93,0.00024192,2]
[346029741,1734639032385,-150.0,0.00024192,2]
[346029742,1734639032395,-364.93,0.00024192,2]
[346029743,1734639032404,-150.0,0.00024192,2]
[346029744,1734639032414,-150.0,0.00024192,2]
[346029745,1734639032423,-150.0,0.00024192,2]
[346029746,1734639032432,-364.93,0.00024192,2]
[346029747,1734639032443,-364.93,0.00024192,2]
[346029748,1734639032453,-364.93,0.00024192,2]
[346029749,1734639032462,-221.13,0.00024192,2]
[346029750,1734639032471,-1827.40711498,0.000242,2]
[346029751,1734639032483,-1097.95352003,0.000242,2]
[346029752,1734639035409,-8267.31386499,0.000242,2]
[346029753,1734639035419,-7100.0,0.000242,8]
[346029754,1734639035428,-150.0,0.00024229,4]
[346029755,1734639035438,-500.0,0.00024235,7]
[346029756,1734639035447,-356.0,0.0002425,2]
[346029757,1734639035457,-12350.0,0.00024261,2]
[346029758,1734639035466,-255.29767,0.00024288,7]
[346029759,1734639035475,-8900.0,0.000243,8]
[346029760,1734639035485,-300.0,0.000243,2]
[346029761,1734639035494,-150.0,0.000243,2]
[346029762,1734639035504,-436.69,0.000243,2]
[346029763,1734639035513,-150.0,0.000243,2]
[346029764,1734639035523,-364.93,0.000243,2]
[346029765,1734639035532,-436.69,0.000243,2]
[346029766,1734639035541,-182.75779525,0.00024301,2]
[346029767,1734639035550,-150.0,0.00024305,4]
[346029768,1734639035560,-2500.0,0.00024326,2]
[346029769,1734639035570,-150.0,0.00024362,4]
[346029770,1734639035580,-150.0,0.00024381,4]
[346029771,1734639035595,-152.0,0.00024395,3]
[346029772,1734639035606,-1551.0,0.000244,3]
[346029773,1734639035615,-1700.0,0.000244,8]
[346029774,1734639035625,-182.75779525,0.00024411,2]
[346029775,1734639035635,-420.0,0.00024436,2]
[346029776,1734639035644,-153.0,0.00024444,2]
[346029777,1734639035653,-153.0,0.00024444,2]
[346029778,1734639035662,-153.0,0.00024444,2]
[346029779,1734639035671,-150.0,0.00024456,4]
[346029780,1734639035681,-1431.76,0.00024462,2]
[346029781,1734639035690,-255.29767,0.00024488,7]
[346029782,1734639035699,-1000.0,0.00024496,2]
[346029783,1734639035708,-356.0,0.000245,2]
[346029784,1734639035718,-1700.0,0.000245,8]
[346029785,1734639035727,-500.0,0.00024508,7]
[346029786,1734639035737,-2500.0,0.00024524,2]
[346029787,1734639035746,-1272.08,0.00024525,2]
[346029788,1734639035756,-2027.443,0.00024525,2]
[346029789,1734639035765,-150.0,0.00024532,4]
[346029790,1734639035774,-182.75779525,0.00024548,2]
[346029791,1734639035783,-8870.83995639,0.00024557,2]
[346029792,1734639035793,-8870.8399563,0.00024595,2]
[346029794,1734639035803,-1700.0,0.000246,8]
[346029796,1734639035812,-150.0,0.00024608,4]
[346029797,1734639035822,-500.0,0.00024623,4]
[346029798,1734639035832,-500.0,0.00024623,4]
[346029799,1734639035846,-500.0,0.00024623,4]
[346029800,1734639035855,-500.0,0.00024623,4]
[346029801,1734639035867,-226.694226,0.00024623,4]
[346029802,1734639035879,-240.837551,0.00024623,4]
[346029803,1734639035888,-539.18,0.00024623,4]
[346029804,1734639035898,-500.0,0.00024623,4]
[346029805,1734639035907,-500.0,0.00024623,4]
[346029806,1734639035919,-500.0,0.00024623,4]
[346029807,1734639035928,-500.0,0.00024623,4]
[346029808,1734639035938,-500.0,0.00024623,4]
[346029809,1734639035948,-500.0,0.00024623,4]
[346029810,1734639035957,-500.0,0.00024623,4]
[346029811,1734639035967,-500.0,0.00024623,4]
[346029812,1734639035977,-500.0,0.00024623,4]
[346029813,1734639035986,-500.0,0.00024623,4]
[346029814,1734639035995,-500.0,0.00024623,4]
[346029815,1734639036008,-500.0,0.00024623,4]
[346029816,1734639036017,-500.0,0.00024623,4]
[346029817,1734639036027,-500.0,0.00024623,4]
[346029818,1734639036036,-500.0,0.00024623,4]
[346029819,1734639036046,-500.0,0.00024623,4]
[346029820,1734639036056,-631.65,0.00024623,4]
[346029821,1734639036066,-500.0,0.00024623,4]
[346029822,1734639036076,-1878.32,0.00024623,4]
[346029823,1734639036085,-500.0,0.00024623,4]
[346029824,1734639036097,-767.02,0.00024623,4]
[346029825,1734639036107,-500.0,0.00024623,4]
[346029826,1734639036116,-500.0,0.00024623,4]
[346029827,1734639036126,-500.0,0.00024623,4]
[346029828,1734639036135,-500.0,0.00024623,4]
[346029829,1734639036144,-500.0,0.00024623,4]
[346029830,1734639036153,-460.1786041,0.00024623,4]
[346029831,1734639036170,-39.8213959,0.00024623,4]
[346029832,1734639036180,-500.0,0.00024623,4]
[346029833,1734639036191,-500.0,0.00024623,4]
[346029834,1734639036203,-500.0,0.00024623,4]
[346029835,1734639036213,-1766.22,0.00024623,4]
[346029836,1734639036222,-500.0,0.00024623,4]
[346029838,1734639036231,-500.0,0.00024623,4]
[346029840,1734639036241,-500.0,0.00024623,4]
[346029841,1734639036250,-500.0,0.00024623,4]
[346029843,1734639036259,-500.0,0.00024623,4]
[346029845,1734639036269,-500.0,0.00024623,4]
[346029847,1734639036278,-500.0,0.00024623,4]
[346029849,1734639036287,-500.0,0.00024623,4]
[346029851,1734639036296,-500.0,0.00024623,4]
[346029853,1734639036306,-500.0,0.00024623,4]
[346029855,1734639036314,-500.0,0.00024623,4]
[346029857,1734639036324,-500.0,0.00024623,4]
[346029859,1734639036334,-500.0,0.00024623,4]
[346029860,1734639036348,-500.0,0.00024623,4]
[346029861,1734639036358,-500.0,0.00024623,4]
[346029862,1734639036367,-500.0,0.00024623,4]
[346029863,1734639036376,-500.0,0.00024623,4]
[346029864,1734639036386,-500.0,0.00024623,4]
[346029865,1734639036396,-500.0,0.00024623,4]
[346029866,1734639036406,-500.0,0.00024623,4]
[346029867,1734639036415,-500.0,0.00024623,4]
[346029868,1734639036424,-500.0,0.00024623,4]
[346029869,1734639036434,-500.0,0.00024623,4]
[346029870,1734639036443,-500.0,0.00024623,4]
[346029871,1734639036453,-500.0,0.00024623,4]
[346029872,1734639036462,-7500.0,0.00024623,2]
[346029873,1734639036472,-500.0,0.00024623,4]
[346029874,1734639036482,-500.0,0.00024623,4]
[346029875,1734639036491,-500.0,0.00024623,4]
[346029876,1734639036501,-500.0,0.00024623,4]
[346029877,1734639036511,-150.591604,0.00024624,4]
[346029878,1734639036520,-500.0,0.00024624,4]
[346029879,1734639036529,-500.0,0.00024624,4]
[346029880,1734639036540,-500.0,0.00024624,4]
[346029881,1734639036549,-500.0,0.00024624,4]
[346029882,1734639036559,-500.0,0.00024624,4]
[346029883,1734639036569,-500.0,0.00024624,4]
[346029884,1734639036579,-500.0,0.00024624,4]
[346029885,1734639036591,-500.0,0.00024624,4]
[346029886,1734639036600,-346.31332938,0.00024624,4]
[346029887,1734639036610,-500.0,0.00024624,4]
[346029888,1734639036620,-500.0,0.00024624,4]
[346029889,1734639036629,-500.0,0.00024624,4]
[346029890,1734639036639,-500.0,0.00024624,4]
[346029891,1734639036650,-500.0,0.00024624,4]
[346029892,1734639036660,-500.0,0.00024624,4]
[346029893,1734639036669,-500.0,0.00024624,4]
[346029894,1734639036678,-612.65462641,0.00024624,4]
[346029895,1734639036688,-460.3521112,0.00024624,4]
[346029896,1734639036697,-180.65306811,0.00024624,4]
[346029897,1734639036706,-500.0,0.00024624,4]
[346029898,1734639036716,-500.0,0.00024624,4]
[346029899,1734639036725,-500.0,0.00024624,4]
[346029900,1734639036735,-500.0,0.00024624,4]
[346029901,1734639036744,-500.0,0.00024624,4]
[346029902,1734639036753,-172.71243885,0.00024624,4]
[346029903,1734639036762,-500.0,0.00024624,4]
[346029904,1734639036771,-500.0,0.00024624,4]
[346029905,1734639036781,-500.0,0.00024624,4]
[346029906,1734639036791,-500.0,0.00024624,4]
[346029907,1734639036800,-500.0,0.00024624,4]
[346029908,1734639036810,-490.382884,0.00024624,4]
[346029909,1734639036819,-500.0,0.00024624,4]
[346029910,1734639036828,-588.85,0.00024624,4]
[346029911,1734639036837,-500.0,0.00024624,4]
[346029912,1734639036850,-500.0,0.00024624,4]
[346029913,1734639036859,-500.0,0.00024624,4]
[346029914,1734639036870,-500.0,0.00024624,4]
[346029915,1734639036880,-500.0,0.00024624,4]
[346029916,1734639036889,-500.0,0.00024624,4]
[346029917,1734639036899,-500.0,0.00024624,4]
[346029918,1734639036910,-500.0,0.00024624,4]
[346029919,1734639036919,-500.0,0.00024624,4]
[346029920,1734639036929,-500.0,0.00024624,4]
[346029921,1734639036938,-500.0,0.00024624,4]
[346029922,1734639036948,-500.0,0.00024624,4]
[346029923,1734639036958,-500.0,0.00024624,4]
[346029924,1734639036967,-500.0,0.00024624,4]
[346029925,1734639036977,-545.11000297,0.00024624,4]
[346029926,1734639036986,-500.0,0.00024624,4]
[346029927,1734639036995,-500.0,0.00024624,4]
[346029928,1734639037005,-351.9030351,0.00024624,4]
[346029929,1734639037014,-500.0,0.00024624,4]
[346029930,1734639037023,-500.0,0.00024624,4]
[346029931,1734639037033,-500.0,0.00024624,4]
[346029932,1734639037042,-500.0,0.00024624,4]
[346029933,1734639037051,-500.0,0.00024624,4]
[346029934,1734639037061,-500.0,0.00024624,4]
[346029935,1734639037070,-500.0,0.00024624,4]
[346029936,1734639037079,-500.0,0.00024624,4]
[346029937,1734639037094,-500.0,0.00024624,4]
[346029938,1734639037103,-659.63,0.00024624,4]
[346029939,1734639037113,-336.86375723,0.00024624,4]
[346029940,1734639037122,-500.0,0.00024624,4]
[346029941,1734639037131,-402.47929835,0.00024624,4]
[346029942,1734639037140,-500.0,0.00024624,4]
[346029943,1734639037149,-500.0,0.00024624,4]
[346029944,1734639037162,-500.0,0.00024624,4]
[346029945,1734639037172,-500.0,0.00024624,4]
[346029946,1734639037181,-500.0,0.00024624,4]
[346029947,1734639037191,-500.0,0.00024624,4]
[346029948,1734639037200,-500.0,0.00024624,4]
[346029949,1734639037209,-500.0,0.00024624,4]
[346029950,1734639037218,-500.0,0.00024624,4]
[346029951,1734639037228,-500.0,0.00024624,4]
[346029952,1734639037237,-500.0,0.00024624,4]
[346029953,1734639037246,-500.0,0.00024624,4]
[346029954,1734639037255,-500.0,0.00024624,4]
[346029955,1734639037264,-500.0,0.00024624,4]
[346029956,1734639037274,-500.0,0.00024624,4]
[346029957,1734639037283,-500.0,0.00024624,4]
[346029958,1734639037292,-500.0,0.00024624,4]
[346029959,1734639037301,-500.0,0.00024624,2]
[346029960,1734639037311,-500.0,0.00024624,4]
[346029961,1734639037320,-500.0,0.00024624,4]
[346029962,1734639037329,-500.0,0.00024624,4]
[346029963,1734639037338,-500.0,0.00024624,4]
[346029964,1734639037352,-500.0,0.00024624,4]
[346029965,1734639037361,-500.0,0.00024624,4]
[346029966,1734639037371,-82.6665313,0.00024624,4]
[346029967,1734639037386,-499.8034687,0.00024624,4]
[346029968,1734639037395,-2.90580035,0.00024624,4]
[346029969,1734639037407,-497.09419965,0.00024624,4]
[346029970,1734639037417,-500.0,0.00024624,4]
[346029971,1734639037426,-500.0,0.00024624,4]
[346029972,1734639037436,-500.0,0.00024624,4]
[346029974,1734639037445,-500.0,0.00024624,4]
[346029975,1734639037455,-500.0,0.00024624,4]
[346029977,1734639037466,-500.0,0.00024624,4]
[346029978,1734639037475,-503.41809775,0.00024624,4]
[346029979,1734639037484,-500.0,0.00024624,4]
[346029980,1734639037494,-238.43304745,0.00024624,4]
[346029981,1734639037503,-500.0,0.00024624,4]
[346029982,1734639037512,-467.79,0.00024624,4]
[346029983,1734639037522,-500.0,0.00024624,4]
[346029984,1734639037533,-557.31,0.00024624,4]
[346029985,1734639037542,-500.0,0.00024624,4]
[346029986,1734639037551,-2185.9,0.00024624,4]
[346029987,1734639037560,-500.0,0.00024624,4]
[346029988,1734639037569,-500.0,0.00024624,4]
[346029989,1734639037578,-265.58045779,0.00024624,4]
[346029990,1734639037595,-500.0,0.00024624,4]
[346029991,1734639037604,-500.0,0.00024624,4]
[346029992,1734639037613,-500.0,0.00024624,4]
[346029993,1734639037623,-500.0,0.00024624,4]
[346029994,1734639037632,-500.0,0.00024624,4]
[346029995,1734639037642,-500.0,0.00024624,4]
[346029997,1734639037651,-500.0,0.00024624,4]
[346029999,1734639037662,-500.0,0.00024624,4]
[346030000,1734639037671,-500.0,0.00024624,4]
[346030002,1734639037681,-500.0,0.00024624,4]
[346030003,1734639037691,-500.0,0.00024624,4]
[346030004,1734639037700,-500.0,0.00024624,4]
[346030005,1734639037709,-500.0,0.00024624,4]
[346030006,1734639037719,-500.0,0.00024624,4]
[346030007,1734639037728,-500.0,0.00024624,4]
[346030008,1734639037737,-500.0,0.00024624,4]
[346030009,1734639037894,-500.0,0.00024624,4]
[346030010,1734639037904,-500.0,0.00024624,4]
[346030011,1734639037916,-500.0,0.00024624,4]
[346030012,1734639037925,-500.0,0.00024624,4]
[346030013,1734639037934,-500.0,0.00024624,4]
[346030014,1734639037943,-500.0,0.00024624,4]
[346030015,1734639037953,-500.0,0.00024624,4]
[346030016,1734639037962,-500.0,0.00024624,4]
[346030017,1734639037971,-0.82361271,0.00024624,4]
[346030018,1734639037983,-499.17638729,0.00024624,4]
[346030019,1734639037993,-633.83514424,0.00024624,4]
[346030020,1734639038002,-500.0,0.00024624,4]
[346030021,1734639038011,-500.0,0.00024624,4]
[346030022,1734639038021,-500.0,0.00024624,4]
[346030023,1734639038031,-500.0,0.00024624,4]
[346030024,1734639038041,-500.0,0.00024624,4]
[346030025,1734639038050,-500.0,0.00024624,4]
[346030026,1734639038059,-500.0,0.00024624,4]
[346030027,1734639038069,-500.0,0.00024624,4]
[346030028,1734639038079,-500.0,0.00024624,4]
[346030029,1734639038088,-500.0,0.00024624,4]
[346030030,1734639038101,-74.52150865,0.00024624,4]
[346030032,1734639038113,-425.47849135,0.00024624,4]
[346030034,1734639038122,-500.0,0.00024624,4]
[346030035,1734639038131,-36.48250865,0.00024624,4]
[346030037,1734639038163,-463.51749135,0.00024624,4]
[346030039,1734639038172,-500.0,0.00024624,4]
[346030041,1734639038181,-27.96462704,0.00024624,4]
[346030043,1734639038196,-472.03537296,0.00024624,4]
[346030045,1734639038205,-500.0,0.00024624,4]
[346030047,1734639038214,-208.58895109,0.00024624,4]
[346030050,1734639038223,-28.87167595,0.00024624,4]
[346030055,1734639038238,-471.12832405,0.00024624,4]
[346030059,1734639038247,-500.0,0.00024624,4]
[346030062,1734639038256,-500.0,0.00024624,4]
[346030065,1734639038264,-700.0,0.00024624,4]
[346030068,1734639038274,-500.0,0.00024624,4]
[346030071,1734639038283,-500.0,0.00024624,4]
[346030074,1734639038292,-63.46343238,0.00024624,4]
[346030077,1734639038303,-436.53656762,0.00024624,4]
[346030079,1734639038312,-39.15382915,0.00024624,4]
[346030082,1734639038323,-460.84617085,0.00024624,4]
[346030084,1734639038332,-500.0,0.00024624,4]
[346030086,1734639038345,-500.0,0.00024624,4]
[346030088,1734639038354,-500.0,0.00024624,4]
[346030090,1734639038364,-500.0,0.00024624,4]
[346030091,1734639038373,-500.0,0.00024624,4]